bitfinex/quotes_BTCUSD_20250109
["timestamp","ask_amount","ask_price","bid_price","bid_amount"]
[1736384492711,0.00015021,95272.0,95271.0,0.209927]
[1736384492892,0.00015021,95272.0,95271.0,0.31422676]
[1736384493381,0.00015021,95272.0,95271.0,0.36092676]
[1736384493581,0.00015021,95272.0,95271.0,0.51092676]
[1736384493786,0.00015021,95272.0,95271.0,0.62498983]
[1736384494157,0.00015021,95272.0,95271.0,0.9659544]
[1736384496119,0.00015021,95272.0,95271.0,1.2478022]
[1736384497700,0.00015021,95272.0,95271.0,0.9659544]
[1736384499351,0.00015021,95272.0,95271.0,0.9429544]
[1736384499643,0.00015021,95272.0,95271.0,0.63442676]
[1736384500372,0.00015021,95272.0,95271.0,0.7280134]
[1736384500702,0.00015021,95272.0,95271.0,0.30351364]
[1736384501321,0.00015021,95272.0,95271.0,0.209927]
[1736384502465,0.00015021,95272.0,95271.0,0.33722676]
[1736384502710,0.00015021,95272.0,95271.0,0.41822676]
[1736384502888,0.00015021,95272.0,95271.0,0.93662676]
[1736384503420,0.00015021,95272.0,95271.0,1.01388765]
[1736384503831,0.00015021,95272.0,95271.0,0.99318676]
[1736384504678,0.00015021,95272.0,95271.0,0.78662676]
[1736384504854,0.00015021,95272.0,95271.0,0.65742676]
[1736384506449,0.00015021,95272.0,95271.0,0.84474356]
[1736384507078,0.00015021,95272.0,95271.0,0.65742676]
[1736384507763,0.00015021,95272.0,95271.0,0.79795697]
[1736384508317,0.00015021,95272.0,95271.0,0.67065721]
[1736384508738,0.00015021,95272.0,95271.0,0.553127]
[1736384509892,0.00015021,95272.0,95271.0,0.65742676]
[1736384510102,0.00015021,95272.0,95271.0,0.553127]
[1736384510327,0.00015021,95272.0,95271.0,0.209927]
[1736384511383,0.00015021,95272.0,95271.0,0.232927]
[1736384511596,0.00015021,95272.0,95271.0,0.33722676]
[1736384512995,0.00015021,95272.0,95271.0,0.57168501]
[1736384513643,0.00015021,95272.0,95271.0,0.79968501]
[1736384513964,0.00015021,95272.0,95271.0,1.11988501]
[1736384514130,0.00015021,95272.0,95271.0,1.04188501]
[1736384514554,0.07645216,95272.0,95271.0,0.44438525]
[1736384514758,0.07645216,95272.0,95271.0,0.209927]
[1736384514759,0.00015021,95272.0,95271.0,0.209927]
[1736384515182,0.00015021,95272.0,95271.0,0.232927]
[1736384515390,0.00015021,95272.0,95271.0,0.33722676]
[1736384516592,0.00015021,95272.0,95271.0,0.33970676]
[1736384517444,0.00015021,95272.0,95271.0,0.212407]
[1736384518789,0.00015021,95272.0,95271.0,0.40009023]
[1736384519781,0.12571538,95272.0,95271.0,0.40009023]
[1736384520665,0.12571538,95272.0,95271.0,0.30626635]
[1736384520840,0.12571538,95272.0,95271.0,0.31526635]
[1736384521432,0.00015021,95272.0,95271.0,0.34870676]
[1736384521712,0.00015021,95272.0,95271.0,0.62500676]
[1736384521937,0.00015021,95272.0,95271.0,0.96597863]
[1736384522674,0.00015021,95272.0,95271.0,0.9985803]
[1736384523346,0.00015021,95272.0,95271.0,1.00902387]
[1736384523745,0.00015021,95272.0,95271.0,1.42445458]
[1736384524171,0.00015021,95272.0,95271.0,1.39323914]
[1736384524374,0.00015021,95272.0,95271.0,1.06133747]
[1736384524991,0.00015021,95272.0,95271.0,0.66890676]
[1736384525408,0.00015021,95272.0,95271.0,0.79830676]
[1736384525618,0.00015021,95272.0,95271.0,0.94830676]
[1736384525834,0.00015021,95272.0,95271.0,0.98090343]
[1736384527084,0.00015021,95272.0,95271.0,1.54850148]
[1736384527289,0.00015021,95272.0,95271.0,1.59923826]
[1736384527290,2.1e-07,95272.0,95271.0,1.59923826]
[1736384527480,2.1e-07,95272.0,95271.0,2.01466897]
[1736384528025,2.1e-07,95272.0,95271.0,1.59023826]
[1736384528439,2.1e-07,95272.0,95271.0,1.59923826]
[1736384529076,2.1e-07,95272.0,95271.0,1.610026]
[1736384529273,0.00014086,95284.0,95283.0,0.49389805]
[1736384529477,0.00023016,95284.0,95283.0,1.04965548]
[1736384530608,0.00023016,95284.0,95283.0,1.05865548]
[1736384534672,0.00023016,95284.0,95283.0,0.94283321]
[1736384534881,0.00023016,95284.0,95283.0,0.64340076]
[1736384535294,0.00023016,95284.0,95283.0,0.81640076]
[1736384536955,0.00023016,95284.0,95283.0,1.09747055]
[1736384537717,0.00023016,95284.0,95283.0,0.81640076]
[1736384538723,0.00023016,95284.0,95283.0,0.92119881]
[1736384539300,0.00023016,95284.0,95283.0,0.89750076]
[1736384542256,0.00023016,95284.0,95283.0,0.92119881]
[1736384542421,0.00023016,95284.0,95283.0,0.93163489]
[1736384543835,0.00023016,95284.0,95283.0,0.90793684]
[1736384544054,0.00023016,95284.0,95283.0,0.82683684]
[1736384544232,0.00023016,95284.0,95283.0,0.88443684]
[1736384544434,0.00023016,95284.0,95283.0,0.86281684]
[1736384545462,0.00023016,95284.0,95283.0,0.94321684]
[1736384545722,0.00023016,95284.0,95283.0,1.01601489]
[1736384547517,0.00023016,95284.0,95283.0,1.06675167]
[1736384548831,0.00023016,95284.0,95283.0,1.09924349]
[1736384549038,0.00023016,95284.0,95283.0,0.78221684]
[1736384549219,0.00023016,95284.0,95283.0,0.83981684]
[1736384550483,0.00023016,95284.0,95283.0,0.86281684]
[1736384551141,0.00023016,95284.0,95283.0,0.48363684]
[1736384551286,0.00023016,95284.0,95283.0,0.47320076]
[1736384551866,0.00023016,95284.0,95283.0,0.66042792]
[1736384552085,0.00023016,95284.0,95283.0,0.68342792]
[1736384552474,0.00023016,95284.0,95283.0,0.53342792]
[1736384552919,0.00023016,95284.0,95283.0,0.34620076]
[1736384553649,0.00023016,95284.0,95283.0,0.33720076]
[1736384553994,0.00023016,95284.0,95283.0,0.53345915]
[1736384554196,0.00023016,95284.0,95283.0,0.52445915]
[1736384554605,0.00023016,95284.0,95283.0,0.53245915]
[1736384554807,0.00023016,95284.0,95283.0,0.68245915]
[1736384555608,0.00023016,95284.0,95283.0,0.77600114]
[1736384556428,0.00023016,95284.0,95283.0,0.49520076]
[1736384562395,0.00023016,95284.0,95283.0,0.77629771]
[1736384562975,0.00023016,95284.0,95283.0,0.49520076]
[1736384563712,0.00023016,95284.0,95283.0,0.52779019]
[1736384563858,0.00023016,95284.0,95283.0,0.49520076]
[1736384564078,0.00023016,95284.0,95283.0,0.52779172]
[1736384564274,0.00023016,95284.0,95283.0,0.49520076]
[1736384564516,0.00023016,95284.0,95283.0,0.52779541]
[1736384565932,0.00023016,95284.0,95283.0,0.49520076]
[1736384566970,0.00023016,95284.0,95283.0,0.52779769]
[1736384568300,0.00023016,95284.0,95283.0,0.61089769]
[1736384571359,0.00023016,95284.0,95283.0,0.63237383]
[1736384573083,0.00023016,95284.0,95283.0,0.93095383]
[1736384576187,0.00023016,95284.0,95283.0,0.97795383]
[1736384576771,1.6e-07,95284.0,95283.0,0.97795383]
[1736384576968,1.6e-07,95284.0,95283.0,1.05238866]
[1736384577929,1.6e-07,95284.0,95283.0,1.04438866]
[1736384578342,1.6e-07,95284.0,95283.0,1.05338866]
[1736384579224,1.6e-07,95284.0,95283.0,1.59728866]
[1736384580389,1.6e-07,95297.0,95296.0,0.02369805]
[1736384580604,1.6e-07,95297.0,95296.0,0.65778688]
[1736384580773,1.6e-07,95297.0,95296.0,0.68933474]
[1736384581424,1.6e-07,95297.0,95296.0,0.73623474]
[1736384581853,1.6e-07,95297.0,95296.0,0.78697152]
[1736384582059,1.6e-07,95297.0,95296.0,0.79597152]
[1736384583007,6.319e-05,95297.0,95296.0,0.79597152]
[1736384583380,6.319e-05,95297.0,95296.0,0.78697152]
[1736384583582,6.319e-05,95297.0,95296.0,0.80634237]
[1736384584128,6.319e-05,95297.0,95296.0,0.75560559]
[1736384586478,6.319e-05,95297.0,95296.0,0.66200754]
[1736384586655,6.319e-05,95297.0,95296.0,0.62941061]
[1736384587068,6.319e-05,95297.0,95296.0,0.65241061]
[1736384587476,6.319e-05,95297.0,95296.0,0.44525061]
[1736384588566,6.319e-05,95297.0,95296.0,0.59525061]
[1736384592435,6.319e-05,95297.0,95296.0,0.65241061]
[1736384593660,6.319e-05,95297.0,95296.0,1.06742766]
[1736384594232,6.319e-05,95297.0,95296.0,0.68493172]
[1736384594434,6.319e-05,95297.0,95296.0,0.68493377]
[1736384594975,6.319e-05,95297.0,95296.0,0.65241061]
[1736384597178,6.319e-05,95297.0,95296.0,0.73201061]
[1736384598221,5.9e-07,95303.0,95302.0,0.38355705]
[1736384598425,0.0001706,95309.0,95308.0,0.209845]
[1736384598631,0.0001706,95309.0,95308.0,0.31414476]
[1736384598833,0.0001706,95309.0,95308.0,0.46414476]
[1736384599073,0.07647255,95309.0,95308.0,0.46414476]
[1736384599289,0.07647255,95309.0,95308.0,0.31414476]
[1736384600649,0.07647255,95309.0,95308.0,0.32314476]
[1736384600846,0.0001706,95309.0,95308.0,0.32314476]
[1736384601834,0.07647255,95309.0,95308.0,0.32314476]
[1736384602427,0.07647255,95309.0,95308.0,0.33359107]
[1736384602837,0.0001706,95309.0,95308.0,0.33359107]
[1736384603062,0.0001706,95309.0,95308.0,0.35659107]
[1736384604011,0.0001706,95309.0,95308.0,0.43349107]
[1736384604157,0.0001706,95309.0,95308.0,0.47969107]
[1736384605292,0.0001706,95309.0,95308.0,0.62969107]
[1736384605474,0.0001706,95309.0,95308.0,0.66099124]
[1736384605683,0.0001706,95309.0,95308.0,0.69357609]
[1736384609031,0.0001706,95309.0,95308.0,0.99215609]
[1736384610329,0.0001706,95309.0,95308.0,1.40754567]
[1736384611039,0.0001706,95309.0,95308.0,0.99215609]
[1736384611461,0.0001706,95309.0,95308.0,1.01585414]
[1736384613048,0.03108511,95320.0,95319.0,0.382821]
[1736384613316,0.03108511,95320.0,95319.0,0.48712076]
[1736384613528,0.03114814,95320.0,95319.0,0.48712076]
[1736384613958,0.03114814,95320.0,95319.0,0.78570076]
[1736384614170,0.03114814,95320.0,95319.0,0.81828438]
[1736384614390,0.03114814,95320.0,95319.0,0.82628438]
[1736384614773,0.03114814,95320.0,95319.0,0.85758455]
[1736384616982,0.03114814,95320.0,95319.0,0.82500093]
[1736384618844,6.303e-05,95320.0,95319.0,0.82500093]
[1736384619253,6.303e-05,95320.0,95319.0,0.83569392]
[1736384621914,6.303e-05,95320.0,95319.0,0.85642783]
[1736384624017,6.303e-05,95320.0,95319.0,0.91362783]
[1736384624733,6.303e-05,95320.0,95319.0,0.86062983]
[1736384624882,6.303e-05,95320.0,95319.0,0.91782983]
[1736384627485,6.303e-05,95320.0,95319.0,0.91906983]
[1736384628294,6.303e-05,95320.0,95319.0,0.86062983]
[1736384628471,6.303e-05,95320.0,95319.0,0.91906983]
[1736384628820,3.81e-05,95323.0,95320.0,0.382819]
[1736384628934,3.81e-05,95323.0,95322.0,0.382815]
[1736384629163,3.81e-05,95323.0,95322.0,0.48711476]
[1736384630606,3.81e-05,95323.0,95322.0,0.49411476]
[1736384630811,3.81e-05,95323.0,95322.0,0.52541493]
[1736384632239,3.81e-05,95323.0,95322.0,0.50241493]
[1736384632401,0.0755381,95323.0,95322.0,0.50241493]
[1736384632608,0.15184005,95323.0,95322.0,0.24811517]
[1736384632805,0.20110327,95323.0,95322.0,0.03830017]
[1736384633217,0.24690327,95323.0,95322.0,0.03830017]
[1736384633767,0.24690327,95323.0,95322.0,0.007]
[1736384633988,0.12556517,95319.0,95318.0,0.09389896]
[1736384634228,0.20186517,95319.0,95318.0,0.09389896]
[1736384634567,0.04926322,95312.0,95311.0,0.209839]
[1736384635842,0.12556517,95312.0,95311.0,0.30373796]
[1736384636852,0.12556517,95312.0,95311.0,0.209839]
[1736384637216,0.12556517,95312.0,95311.0,0.003]
[1736384637618,0.20346517,95312.0,95311.0,0.003]
[1736384638000,0.20346517,95312.0,95309.0,0.09389896]
[1736384638201,0.12556517,95310.0,95309.0,0.09396199]
[1736384638623,0.12414915,95310.0,95309.0,0.09396199]
[1736384638844,0.12414915,95310.0,95309.0,6.303e-05]
[1736384639110,0.25184915,95310.0,95309.0,6.303e-05]
[1736384640208,0.25184915,95310.0,95309.0,0.00406303]
[1736384640411,0.25184915,95310.0,95309.0,6.303e-05]
[1736384640701,0.25184915,95310.0,95309.0,0.00406303]
[1736384641742,0.1755472,95310.0,95309.0,0.00406303]
[1736384641942,0.25184915,95310.0,95309.0,0.00406303]
[1736384643018,0.55428423,95310.0,95309.0,0.00406303]
[1736384643227,0.65428423,95310.0,95309.0,0.00406303]
[1736384643367,0.55614891,95310.0,95309.0,0.00406303]
[1736384644192,0.55614891,95310.0,95309.0,6.303e-05]
[1736384644831,0.25184915,95310.0,95309.0,6.303e-05]
[1736384645875,0.20424915,95310.0,95309.0,6.303e-05]
[1736384646252,0.12414915,95310.0,95309.0,6.303e-05]
[1736384663788,0.21576407,95310.0,95309.0,6.303e-05]
[1736384664070,0.20334915,95310.0,95309.0,6.303e-05]
[1736384665183,0.1270472,95310.0,95309.0,6.303e-05]
[1736384665380,0.12414915,95310.0,95309.0,6.303e-05]
[1736384666925,0.12414915,95310.0,95309.0,0.20990603]
[1736384667138,0.12414915,95310.0,95309.0,6.303e-05]
[1736384671822,0.0478472,95310.0,95309.0,6.303e-05]
[1736384672199,0.07630195,95310.0,95309.0,6.303e-05]
[1736384672402,0.12414915,95310.0,95309.0,6.303e-05]
[1736384672604,4e-05,95320.0,95309.0,6.303e-05]
[1736384672605,0.0478472,95311.0,95310.0,0.255741]
[1736384673164,0.0478472,95311.0,95310.0,0.36004076]
[1736384673777,0.0478472,95311.0,95310.0,0.45374154]
[1736384675536,0.0478472,95311.0,95310.0,0.36004076]
[1736384676750,0.0478472,95311.0,95310.0,0.54744232]
[1736384677984,0.12414915,95311.0,95310.0,0.39724256]
[1736384678324,0.12414915,95311.0,95310.0,0.18740156]
[1736384678737,0.12414915,95310.0,95309.0,0.18746459]
[1736384681844,0.12414915,95310.0,95309.0,6.303e-05]
[1736384689272,0.07630195,95310.0,95309.0,6.303e-05]
[1736384689483,0.07630195,95310.0,95309.0,0.14134224]
[1736384690091,0.12414915,95310.0,95309.0,0.14134224]
[1736384690302,0.12414915,95310.0,95309.0,0.23431498]
[1736384690772,0.12414915,95310.0,95309.0,6.303e-05]
[1736384691708,0.07630195,95311.0,95310.0,0.209841]
[1736384691941,0.12414915,95311.0,95310.0,0.209841]
[1736384692847,0.12414915,95311.0,95310.0,0.419682]
[1736384693206,0.12414915,95311.0,95310.0,0.65522422]
[1736384694677,0.12414915,95311.0,95310.0,0.44538322]
[1736384695392,0.12414915,95311.0,95310.0,0.44534322]
[1736384695897,0.12414915,95311.0,95310.0,0.23554222]
[1736384697137,0.12414915,95311.0,95310.0,0.44538322]
[1736384697321,0.12414915,95311.0,95309.0,0.23560525]
[1736384697516,0.0478472,95310.0,95309.0,0.23560525]
[1736384698068,0.12414915,95310.0,95309.0,0.23560525]
[1736384698821,0.12414915,95310.0,95309.0,6.303e-05]
[1736384699829,0.12414915,95310.0,95309.0,0.09431447]
[1736384701189,0.12414915,95310.0,95309.0,0.29431447]
[1736384701392,0.12414915,95310.0,95309.0,0.20006303]
[1736384701609,0.41816383,95310.0,95309.0,0.20006303]
[1736384701807,0.1251472,95310.0,95309.0,0.20006303]
[1736384701947,0.20144915,95310.0,95309.0,0.20006303]
[1736384704098,0.0478472,95310.0,95309.0,0.20006303]
[1736384704308,0.12414915,95310.0,95309.0,0.17860303]
[1736384712161,0.07630195,95310.0,95309.0,0.17860303]
[1736384712339,0.12414915,95310.0,95309.0,0.17860303]
[1736384713505,0.12414915,95310.0,95309.0,0.31994938]
[1736384714945,0.12414915,95310.0,95309.0,0.39924938]
[1736384716147,0.13656407,95310.0,95309.0,0.31994938]
[1736384716278,0.12414915,95310.0,95309.0,0.31994938]
[1736384716695,0.12414915,95310.0,95309.0,0.17860303]
[1736384722031,0.2098521,95323.0,95310.0,0.0822]
[1736384722032,0.12414915,95311.0,95310.0,0.0822]
[1736384722342,0.0478472,95311.0,95310.0,0.340741]
[1736384722544,0.07630195,95312.0,95310.0,0.340741]
[1736384722750,0.07630195,95313.0,95310.0,0.340741]
[1736384722953,0.07630195,95311.0,95310.0,0.340741]
[1736384723543,0.12414915,95311.0,95310.0,0.340741]
[1736384724563,0.12414915,95311.0,95310.0,0.57631825]
[1736384724997,0.0478472,95311.0,95310.0,0.47077701]
[1736384725887,0.12414915,95312.0,95311.0,0.209839]
[1736384726910,0.07630195,95312.0,95311.0,0.209839]
[1736384727112,0.12414915,95312.0,95311.0,0.209839]
[1736384727337,0.07630195,95314.0,95311.0,0.209839]
[1736384727517,0.07630195,95312.0,95311.0,0.209839]
[1736384728457,0.12414915,95312.0,95311.0,0.209839]
[1736384729809,0.07630195,95312.0,95311.0,0.209839]
[1736384730015,0.12414915,95312.0,95311.0,0.209839]
[1736384731861,0.12414915,95310.0,95309.0,0.17860303]
[1736384734740,0.12414915,95310.0,95309.0,0.36659082]
[1736384734948,0.0478472,95310.0,95309.0,0.36659082]
[1736384735128,0.0478472,95311.0,95310.0,0.209841]
[1736384735316,0.12414915,95311.0,95310.0,0.419682]
[1736384738963,0.12414915,95311.0,95310.0,0.209841]
[1736384739341,0.12977398,95311.0,95310.0,0.209841]
[1736384740398,0.12414915,95311.0,95310.0,0.209841]
[1736384741162,0.0478472,95312.0,95310.0,0.209841]
[1736384741370,0.12414915,95311.0,95310.0,0.209841]
[1736384742000,3.81e-05,95323.0,95310.0,0.209841]
[1736384742001,0.0478472,95314.0,95310.0,0.31414076]
[1736384742188,0.12414915,95311.0,95310.0,0.52398176]
[1736384742750,0.12414915,95311.0,95310.0,0.75899245]
[1736384744608,0.12414915,95311.0,95310.0,0.52398176]
[1736384745105,0.12399177,95311.0,95310.0,0.52398176]
[1736384745305,0.12388685,95311.0,95310.0,0.52398176]
[1736384746482,0.12388685,95311.0,95310.0,0.75892268]
[1736384747219,0.12388685,95311.0,95310.0,0.52398176]
[1736384748076,0.12388685,95311.0,95310.0,0.7118516]
[1736384748887,0.12388685,95311.0,95310.0,0.52398176]
[1736384751424,0.07603965,95311.0,95310.0,0.52398176]
[1736384751686,0.12388685,95311.0,95310.0,0.52398176]
[1736384752003,0.12388685,95311.0,95310.0,0.419682]
[1736384752969,0.12388685,95310.0,95309.0,0.41354395]
[1736384753189,0.12951828,95310.0,95309.0,0.41354395]
[1736384753389,0.12951828,95310.0,95309.0,0.36657084]
[1736384753957,0.12388685,95310.0,95309.0,0.36657084]
[1736384754147,0.37678661,95310.0,95309.0,0.36657084]
[1736384754314,0.37678661,95310.0,95309.0,0.17860303]
[1736384754315,0.40600167,95310.0,95309.0,0.17860303]
[1736384754541,0.50600167,95310.0,95309.0,0.17860303]
[1736384754769,0.55841541,95310.0,95309.0,0.17860303]
[1736384755352,0.35841541,95310.0,95309.0,0.17860303]
[1736384756370,0.35841541,95310.0,95309.0,0.17960303]
[1736384760376,0.0056288,95310.0,95309.0,0.17960303]
[1736384760577,0.12951565,95310.0,95309.0,0.17960303]
[1736384763981,0.07603965,95310.0,95309.0,0.17960303]
[1736384764190,3.81e-05,95323.0,95309.0,0.17960303]
[1736384764406,0.07603965,95318.0,95310.0,0.10429976]
[1736384764625,3.81e-05,95323.0,95309.0,0.17960303]
[1736384764626,0.07603965,95310.0,95309.0,0.17960303]
[1736384764837,0.12388685,95310.0,95309.0,0.17960303]
[1736384765045,0.12388685,95310.0,95309.0,0.17860303]
[1736384765674,0.12388685,95310.0,95309.0,0.17960303]
[1736384765888,0.0478472,95310.0,95309.0,0.17960303]
[1736384766101,0.12388685,95310.0,95309.0,0.17860303]
[1736384766316,0.12388685,95310.0,95309.0,0.27243062]
[1736384766519,0.0478472,95311.0,95310.0,0.209841]
[1736384766721,0.0478472,95311.0,95310.0,0.39684076]
[1736384767054,0.07603965,95318.0,95315.0,0.20983]
[1736384767466,0.12388685,95318.0,95315.0,0.20983]
[1736384767699,0.12388685,95318.0,95317.0,0.209826]
[1736384768606,0.0478472,95319.0,95317.0,0.209826]
[1736384768797,0.12388685,95319.0,95318.0,0.209823]
[1736384768999,0.07603965,95321.0,95320.0,0.209819]
[1736384769215,0.12388685,95321.0,95320.0,0.209819]
[1736384770186,0.0478472,95321.0,95320.0,0.209819]
[1736384770384,0.12388685,95321.0,95320.0,0.209819]
[1736384771314,0.0478472,95321.0,95320.0,0.209819]
[1736384771724,3.81e-05,95323.0,95322.0,0.357915]
[1736384771933,3.81e-05,95323.0,95322.0,0.46221476]
[1736384773165,3.81e-05,95323.0,95322.0,0.46521476]
[1736384773365,3.81e-05,95323.0,95322.0,0.46221476]
[1736384773796,3.81e-05,95323.0,95322.0,0.47121476]
[1736384776994,3.81e-05,95323.0,95322.0,0.44821476]
[1736384777206,0.07607775,95323.0,95322.0,0.218815]
[1736384777744,3.81e-05,95323.0,95322.0,0.218815]
[1736384777944,0.07607775,95323.0,95322.0,0.218815]
[1736384778145,0.07607775,95323.0,95322.0,0.209815]
[1736384778398,3.81e-05,95323.0,95322.0,0.31411476]
[1736384778572,3.81e-05,95323.0,95322.0,0.32111476]
[1736384778775,3.81e-05,95323.0,95322.0,0.34411476]
[1736384778957,3.81e-05,95323.0,95322.0,0.43771293]
[1736384780212,3.81e-05,95323.0,95322.0,0.34411476]
[1736384781838,3.81e-05,95323.0,95322.0,0.43766569]
[1736384783162,3.81e-05,95323.0,95322.0,0.57251476]
[1736384783365,3.81e-05,95323.0,95322.0,0.61891476]
[1736384783774,3.81e-05,95323.0,95322.0,0.59591476]
[1736384783973,3.81e-05,95323.0,95322.0,0.61891476]
[1736384786192,3.81e-05,95323.0,95322.0,0.73616671]
[1736384786344,0.0746487,95327.0,95325.0,0.15]
[1736384786541,0.0746487,95327.0,95326.0,0.359806]
[1736384787332,0.1224959,95327.0,95326.0,0.209806]
[1736384787930,0.0001706,95330.0,95327.0,0.209803]
[1736384788141,0.0001706,95330.0,95329.0,0.209799]
[1736384788450,0.0001706,95330.0,95329.0,0.31409876]
[1736384789213,0.0480178,95330.0,95329.0,0.31409876]
[1736384789438,0.0001706,95330.0,95329.0,0.31409876]
[1736384789848,0.0001706,95330.0,95329.0,0.31809876]
[1736384790700,0.0480178,95330.0,95329.0,0.004]
[1736384790911,0.1226665,95330.0,95329.0,0.004]
[1736384791567,0.0748193,95330.0,95329.0,0.10829976]
[1736384791773,0.1226665,95330.0,95329.0,0.004]
[1736384792921,0.0748193,95330.0,95329.0,0.004]
[1736384793829,0.1226665,95330.0,95329.0,0.004]
[1736384795117,0.0748193,95330.0,95329.0,0.004]
[1736384795908,0.1226665,95330.0,95329.0,0.004]
[1736384796112,0.0748193,95330.0,95329.0,0.004]
[1736384796540,0.08143575,95330.0,95329.0,0.004]
[1736384797617,0.12928295,95330.0,95329.0,0.004]
[1736384797813,0.08143575,95330.0,95329.0,0.004]
[1736384798986,0.12928295,95330.0,95329.0,0.004]
[1736384803938,0.08143575,95330.0,95329.0,0.004]
[1736384805044,0.12928295,95330.0,95329.0,0.004]
[1736384805484,0.20978295,95330.0,95329.0,0.004]
[1736384806522,0.25828295,95330.0,95329.0,0.004]
[1736384807563,0.46258271,95330.0,95329.0,0.004]
[1736384807771,0.49005281,95330.0,95329.0,0.004]
[1736384807988,0.81365281,95330.0,95329.0,0.004]
[1736384808198,0.78618271,95330.0,95329.0,0.004]
[1736384808596,0.0746487,95313.0,95312.0,0.09349894]
[1736384808797,0.1224959,95313.0,95309.0,0.17860303]
[1736384809335,0.0478472,95313.0,95309.0,0.17860303]
[1736384809580,0.1224959,95311.0,95310.0,0.209841]
[1736384811200,0.0478472,95311.0,95310.0,0.209841]
[1736384811399,0.1224959,95311.0,95310.0,0.209841]
[1736384811693,0.1224959,95311.0,95309.0,0.32185498]
[1736384811899,0.1224959,95311.0,95310.0,0.14025195]
[1736384812307,0.1224959,95311.0,95310.0,0.14425195]
[1736384812544,0.1224959,95311.0,95309.0,0.17860303]
[1736384812752,0.1224959,95311.0,95310.0,0.209841]
[1736384813558,0.1224959,95311.0,95310.0,0.213841]
[1736384814760,0.0746487,95311.0,95310.0,0.213841]
[1736384814968,0.1224959,95311.0,95310.0,0.213841]
[1736384817179,0.0746487,95318.0,95317.0,0.209826]
[1736384817434,0.1224959,95318.0,95317.0,0.209826]
[1736384817646,0.12909222,95318.0,95317.0,0.209826]
[1736384818823,0.12909222,95318.0,95314.0,0.209832]
[1736384819241,0.0746487,95315.0,95314.0,0.209832]
[1736384819450,0.1224959,95315.0,95314.0,0.209832]
[1736384820209,0.0746487,95315.0,95314.0,0.210832]
[1736384820406,0.1224959,95315.0,95314.0,0.209832]
[1736384820809,0.1224959,95315.0,95314.0,0.211832]
[1736384821013,0.1224959,95315.0,95314.0,0.002]
[1736384821515,0.12909222,95315.0,95314.0,0.002]
[1736384822475,0.0746487,95313.0,95312.0,0.09370923]
[1736384822684,0.1224959,95313.0,95312.0,0.09370923]
[1736384824327,0.1224959,95313.0,95312.0,0.09670923]
[1736384824524,0.0478472,95320.0,95313.0,0.496768]
[1736384824722,0.0746487,95316.0,95314.0,0.10429976]
[1736384825618,0.0746487,95316.0,95315.0,0.14056385]
[1736384826367,0.0746487,95316.0,95315.0,0.25533]
[1736384826966,0.0746487,95319.0,95315.0,0.46516]
[1736384827167,0.1224959,95321.0,95317.0,0.209826]
[1736384827396,0.0478472,95319.0,95317.0,0.31412576]
[1736384827599,0.0746487,95318.0,95317.0,0.209826]
[1736384828036,0.0746487,95318.0,95316.0,0.14057963]
[1736384828037,0.0746487,95317.0,95316.0,0.14057963]
[1736384828665,0.0746487,95317.0,95315.0,0.14057963]
[1736384828979,0.0746487,95317.0,95316.0,0.209828]
[1736384829283,0.0746487,95319.0,95317.0,0.209825]
[1736384829487,0.0746487,95318.0,95317.0,0.209826]
[1736384830234,0.0746487,95318.0,95317.0,0.35040563]
[1736384832426,0.0746487,95318.0,95317.0,0.35140563]
[1736384832607,0.0746487,95318.0,95317.0,0.35040563]
[1736384832812,0.0746487,95318.0,95317.0,0.209826]
[1736384833012,0.0746487,95318.0,95317.0,0.210826]
[1736384833225,0.0001706,95330.0,95317.0,0.210826]
[1736384833226,0.0746487,95320.0,95317.0,0.210826]
[1736384833559,0.0746487,95319.0,95317.0,0.420652]
[1736384833745,0.0746487,95320.0,95317.0,0.420652]
[1736384833946,0.0746487,95318.0,95317.0,0.210826]
[1736384834332,0.0746487,95318.0,95317.0,0.209826]
[1736384835201,0.0746487,95328.0,95323.0,0.209812]
[1736384835412,0.0746487,95326.0,95324.0,0.1286]
[1736384836038,0.00742061,95325.0,95324.0,0.1286]
[1736384836455,0.0746487,95325.0,95324.0,0.1286]
[1736384836920,0.0746487,95324.0,95323.0,0.209812]
[1736384837135,0.1224959,95323.0,95322.0,0.23377202]
[1736384837988,0.1224959,95323.0,95320.0,0.209818]
[1736384838205,0.0478472,95318.0,95317.0,0.09379288]
[1736384838638,0.1224959,95318.0,95317.0,0.09379288]
[1736384839788,0.1224959,95318.0,95315.0,0.09379288]
[1736384840015,0.1224959,95318.0,95317.0,0.001]
[1736384842190,0.1224959,95318.0,95315.0,0.09379288]
[1736384842368,0.0478472,95317.0,95316.0,0.209828]
[1736384843525,0.1224959,95316.0,95315.0,0.09379288]
[1736384844928,0.1224959,95316.0,95314.0,0.209831]
[1736384845535,0.1224959,95316.0,95314.0,0.35052032]
[1736384845672,0.1224959,95316.0,95315.0,0.002]
[1736384845868,0.0478472,95315.0,95314.0,0.35052032]
[1736384846120,0.1224959,95315.0,95314.0,0.35052032]
[1736384846329,0.1224959,95315.0,95314.0,0.35252032]
[1736384846524,0.1224959,95315.0,95314.0,0.35052032]
[1736384848506,0.1224959,95315.0,95314.0,0.35252032]
[1736384848951,0.1224959,95315.0,95314.0,0.211831]
[1736384850305,0.1224959,95315.0,95314.0,0.002]
[1736384850980,0.1298964,95315.0,95314.0,0.002]
[1736384851569,0.0478472,95311.0,95310.0,0.00248]
[1736384851971,0.1224959,95311.0,95310.0,0.00248]
[1736384853013,0.1224959,95311.0,95310.0,0.00648]
[1736384853222,0.0478472,95311.0,95310.0,0.00648]
[1736384853474,0.1224959,95311.0,95310.0,0.00648]
[1736384854899,0.1224959,95311.0,95310.0,0.08368]
[1736384855102,0.1224959,95311.0,95310.0,0.00648]
[1736384855978,0.13110981,95311.0,95310.0,0.00648]
[1736384861686,0.46520957,95311.0,95310.0,0.00648]
[1736384861894,0.56520957,95311.0,95310.0,0.00648]
[1736384862784,0.71520957,95311.0,95310.0,0.00648]
[1736384862983,0.71520957,95311.0,95310.0,0.00248]
[1736384863185,0.71520957,95311.0,95310.0,0.00348]
[1736384863630,0.71704638,95311.0,95310.0,0.00348]
[1736384863851,0.82134614,95311.0,95310.0,0.00348]
[1736384864668,0.73573252,95311.0,95310.0,0.00248]
[1736384864885,0.8326369,95310.0,95309.0,0.00304366]
[1736384865087,0.2224959,95289.0,95271.0,8.53e-05]
[1736384865293,0.45794115,95289.0,95271.0,8.53e-05]
[1736384865501,0.66986763,95289.0,95271.0,8.53e-05]
[1736384865702,0.67838117,95289.0,95271.0,8.53e-05]
[1736384865952,0.92838117,95289.0,95271.0,8.53e-05]
[1736384866127,0.7588049,95279.0,95271.0,8.53e-05]
[1736384866392,0.8715604,95279.0,95271.0,8.53e-05]
[1736384866600,0.92538761,95279.0,95271.0,8.53e-05]
[1736384867448,0.93594283,95279.0,95271.0,8.53e-05]
[1736384867658,0.93603104,95279.0,95271.0,8.53e-05]
[1736384867866,1.0403308,95279.0,95271.0,8.53e-05]
[1736384868097,1.06155578,95279.0,95271.0,8.53e-05]
[1736384868775,1.07055578,95279.0,95278.0,0.0010853]
[1736384872934,1.06155578,95279.0,95278.0,8.53e-05]